[Event "Titled Tuesday Blitz March 28 Early 2023"]
[White "Ashraf, Artin"]
[Black "Kaidanov, Gregory"]
[WhiteFideId "22514805"]
[BlackFideId "2008564"]
[WhiteElo "2188"]
[BlackElo "2547"]
[Result "0-1"]
[Round "04"]
[TimeControl "180+2"]
[Date "2023.03.28"]
[WhiteClock "0:00:01"]
[BlackClock "0:00:27"]

1. Nf3 {[%clk 0:02:59]}  d5 {[%clk 0:02:59]} 2. e3 {[%clk 0:02:58]}  Nf6 {[%clk 0:02:58]} 3. c4 {[%clk 0:02:59]}  e6 {[%clk 0:02:58]} 4. b3 {[%clk 0:02:59]}  c6 {[%clk 0:02:55]} 5. Bb2 {[%clk 0:02:59]}  Bd6 {[%clk 0:02:56]} 6. d4 {[%clk 0:02:57]}  O-O {[%clk 0:02:55]} 7. Nbd2 {[%clk 0:02:57]}  Nbd7 {[%clk 0:02:55]} 8. Bd3 {[%clk 0:02:57]}  b6 {[%clk 0:02:56]} 9. O-O {[%clk 0:02:57]}  Bb7 {[%clk 0:02:56]} 10. Qe2 {[%clk 0:02:52]}  c5 {[%clk 0:02:56]} 11. cxd5 {[%clk 0:02:51]}  exd5 {[%clk 0:02:56]} 12. Rac1 {[%clk 0:02:36]}  Re8 {[%clk 0:02:55]} 13. dxc5 {[%clk 0:02:35]}  bxc5 {[%clk 0:02:55]} 14. Ba6 {[%clk 0:02:35]}  Qb6 {[%clk 0:02:52]} 15. Bxb7 {[%clk 0:02:35]}  Qxb7 {[%clk 0:02:53]} 16. Qd3 {[%clk 0:02:35]}  a5 {[%clk 0:02:45]} 17. Rfd1 {[%clk 0:02:23]}  h6 {[%clk 0:02:42]} 18. Qc2 {[%clk 0:02:21]}  a4 {[%clk 0:02:37]} 19. Bc3 {[%clk 0:02:15]}  axb3 {[%clk 0:02:33]} 20. axb3 {[%clk 0:02:16]}  Re6 {[%clk 0:02:25]} 21. h3 {[%clk 0:02:08]}  Ree8 {[%clk 0:02:17]} 22. Ra1 {[%clk 0:02:04]}  Rxa1 {[%clk 0:02:16]} 23. Rxa1 {[%clk 0:02:05]}  Ra8 {[%clk 0:02:16]} 24. Re1 {[%clk 0:02:02]}  Re8 {[%clk 0:02:08]} 25. Qd3 {[%clk 0:01:56]}  Ra8 {[%clk 0:01:50]} 26. g3 {[%clk 0:01:35]}  Bf8 {[%clk 0:01:45]} 27. Kg2 {[%clk 0:01:24]}  Ne4 {[%clk 0:01:43]} 28. Ra1 {[%clk 0:01:05]}  Nxd2 {[%clk 0:01:31]} 29. Qxd2 {[%clk 0:00:18]}  Rxa1 {[%clk 0:01:30]} 30. Bxa1 {[%clk 0:00:19]}  Qxb3 {[%clk 0:01:31]} 31. Qa5 {[%clk 0:00:19]}  Qb8 {[%clk 0:01:17]} 32. Qa6 {[%clk 0:00:18]}  Qd6 {[%clk 0:01:14]} 33. Qb7 {[%clk 0:00:15]}  Qe6 {[%clk 0:01:06]} 34. Qc8 {[%clk 0:00:13]}  Nb6 {[%clk 0:00:59]} 35. Qb7 {[%clk 0:00:12]}  Nc4 {[%clk 0:00:57]} 36. Bc3 {[%clk 0:00:09]}  Nd6 {[%clk 0:00:57]} 37. Qa8 {[%clk 0:00:06]}  Ne4 {[%clk 0:00:56]} 38. Ba5 {[%clk 0:00:05]}  Qd6 {[%clk 0:00:46]} 39. Qc8 {[%clk 0:00:04]}  f6 {[%clk 0:00:42]} 40. Bc7 {[%clk 0:00:03]}  Qc6 {[%clk 0:00:38]} 41. Qb8 {[%clk 0:00:03]}  d4 {[%clk 0:00:34]} 42. exd4 {[%clk 0:00:03]}  Nd2 {[%clk 0:00:34]} 43. d5 {[%clk 0:00:01]}  Qxd5 {[%clk 0:00:33]} 44. Kh1 {[%clk 0:00:01]}  Nxf3 {[%clk 0:00:27]} 0-1


[Site "https://www.chess.com"]

[Event "Titled Tuesday Blitz March 28 Early 2023"]
[White "Timofeev, Artyom"]
[Black "Crevatin, Leo"]
[WhiteFideId "4140419"]
[BlackFideId "1726307"]
[WhiteElo "2586"]
[BlackElo "2190"]
[Result "1-0"]
[Round "04"]
[TimeControl "180+2"]
[Date "2023.03.28"]
[WhiteClock "0:00:16"]
[BlackClock "0:00:02"]

1. e4 {[%clk 0:03:00]}  c5 {[%clk 0:02:59]} 2. Nf3 {[%clk 0:03:00]}  d6 {[%clk 0:02:59]} 3. d4 {[%clk 0:02:59]}  cxd4 {[%clk 0:03:00]} 4. Nxd4 {[%clk 0:02:59]}  Nf6 {[%clk 0:03:00]} 5. Nc3 {[%clk 0:03:00]}  Nc6 {[%clk 0:03:00]} 6. Be2 {[%clk 0:02:58]}  g6 {[%clk 0:03:00]} 7. Be3 {[%clk 0:02:57]}  Bg7 {[%clk 0:02:59]} 8. Qd2 {[%clk 0:02:57]}  Ng4 {[%clk 0:02:55]} 9. Bxg4 {[%clk 0:02:56]}  Bxg4 {[%clk 0:02:56]} 10. f3 {[%clk 0:02:56]}  Bd7 {[%clk 0:02:55]} 11. O-O-O {[%clk 0:02:55]}  O-O {[%clk 0:02:47]} 12. h4 {[%clk 0:02:54]}  Qa5 {[%clk 0:02:27]} 13. h5 {[%clk 0:02:51]}  Rfc8 {[%clk 0:02:25]} 14. Kb1 {[%clk 0:02:38]}  Rab8 {[%clk 0:01:41]} 15. hxg6 {[%clk 0:02:35]}  hxg6 {[%clk 0:01:41]} 16. Nb3 {[%clk 0:02:24]}  Qd8 {[%clk 0:01:32]} 17. Bh6 {[%clk 0:02:22]}  Bh8 {[%clk 0:01:30]} 18. Qf4 {[%clk 0:02:15]}  Ne5 {[%clk 0:01:23]} 19. Qh4 {[%clk 0:02:12]}  f6 {[%clk 0:01:11]} 20. Nd5 {[%clk 0:01:51]}  Nf7 {[%clk 0:01:08]} 21. Be3 {[%clk 0:01:48]}  g5 {[%clk 0:00:42]} 22. Qh7+ {[%clk 0:01:47]}  Kf8 {[%clk 0:00:42]} 23. Bxa7 {[%clk 0:01:37]}  Ra8 {[%clk 0:00:42]} 24. Bb6 {[%clk 0:01:37]}  Qe8 {[%clk 0:00:42]} 25. Nc7 {[%clk 0:01:31]}  Rxc7 {[%clk 0:00:42]} 26. Bxc7 {[%clk 0:01:31]}  Bg7 {[%clk 0:00:43]} 27. Qg6 {[%clk 0:01:22]}  Ne5 {[%clk 0:00:29]} 28. Qxe8+ {[%clk 0:01:22]}  Kxe8 {[%clk 0:00:30]} 29. Bb6 {[%clk 0:01:21]}  g4 {[%clk 0:00:24]} 30. Nd2 {[%clk 0:01:07]}  Be6 {[%clk 0:00:19]} 31. b3 {[%clk 0:01:07]}  Kf7 {[%clk 0:00:18]} 32. Bd4 {[%clk 0:01:06]}  Rg8 {[%clk 0:00:15]} 33. f4 {[%clk 0:00:59]}  Nc6 {[%clk 0:00:14]} 34. Bb2 {[%clk 0:00:59]}  f5 {[%clk 0:00:15]} 35. Rh7 {[%clk 0:00:57]}  Kg6 {[%clk 0:00:15]} 36. Rxg7+ {[%clk 0:00:56]}  Rxg7 {[%clk 0:00:16]} 37. Bxg7 {[%clk 0:00:56]}  Kxg7 {[%clk 0:00:17]} 38. Kb2 {[%clk 0:00:53]}  Kf6 {[%clk 0:00:10]} 39. Re1 {[%clk 0:00:53]}  Nd4 {[%clk 0:00:05]} 40. c3 {[%clk 0:00:51]}  Nb5 {[%clk 0:00:05]} 41. a4 {[%clk 0:00:51]}  Nc7 {[%clk 0:00:05]} 42. c4 {[%clk 0:00:47]}  Bd7 {[%clk 0:00:05]} 43. exf5 {[%clk 0:00:36]}  Bxf5 {[%clk 0:00:05]} 44. Ne4+ {[%clk 0:00:36]}  Kg6 {[%clk 0:00:05]} 45. Ng3 {[%clk 0:00:35]}  Ne6 {[%clk 0:00:01]} 46. Nxf5 {[%clk 0:00:35]}  Kxf5 {[%clk 0:00:02]} 47. g3 {[%clk 0:00:35]}  Kf6 {[%clk 0:00:03]} 48. Kc3 {[%clk 0:00:33]}  Ng7 {[%clk 0:00:03]} 49. Re3 {[%clk 0:00:25]}  Nf5 {[%clk 0:00:04]} 50. Rd3 {[%clk 0:00:25]}  e5 {[%clk 0:00:04]} 51. fxe5+ {[%clk 0:00:23]}  dxe5 {[%clk 0:00:05]} 52. Kd2 {[%clk 0:00:22]}  e4 {[%clk 0:00:04]} 53. Rc3 {[%clk 0:00:23]}  Ke5 {[%clk 0:00:04]} 54. c5 {[%clk 0:00:23]}  Kd4 {[%clk 0:00:04]} 55. c6 {[%clk 0:00:17]}  bxc6 {[%clk 0:00:04]} 56. Rxc6 {[%clk 0:00:17]}  e3+ {[%clk 0:00:03]} 57. Ke1 {[%clk 0:00:16]}  Ke4 {[%clk 0:00:02]} 58. a5 {[%clk 0:00:16]} 1-0


[Site "https://www.chess.com"]

[Event "Titled Tuesday Blitz March 28 Early 2023"]
[White "Martic, Ivan"]
[Black "Asadli, Vugar"]
[WhiteFideId "929301"]
[BlackFideId "13405764"]
[WhiteElo "2360"]
[BlackElo "2598"]
[Result "1-0"]
[Round "04"]
[TimeControl "180+2"]
[Date "2023.03.28"]
[WhiteClock "0:01:39"]
[BlackClock "0:02:16"]

1. d4 {[%clk 0:03:00]}  Nf6 {[%clk 0:02:59]} 2. Bg5 {[%clk 0:03:00]}  g6 {[%clk 0:02:58]} 3. Bxf6 {[%clk 0:03:00]}  exf6 {[%clk 0:02:59]} 4. e3 {[%clk 0:02:58]}  f5 {[%clk 0:02:58]} 5. g3 {[%clk 0:02:59]}  h5 {[%clk 0:02:56]} 6. h4 {[%clk 0:02:58]}  d6 {[%clk 0:02:55]} 7. Bg2 {[%clk 0:02:58]}  Nd7 {[%clk 0:02:55]} 8. Ne2 {[%clk 0:02:57]}  Nf6 {[%clk 0:02:55]} 9. c4 {[%clk 0:02:57]}  Bg7 {[%clk 0:02:55]} 10. Nbc3 {[%clk 0:02:57]}  O-O {[%clk 0:02:54]} 11. Qd3 {[%clk 0:02:57]}  Re8 {[%clk 0:02:53]} 12. O-O {[%clk 0:02:57]}  Ng4 {[%clk 0:02:51]} 13. Nf4 {[%clk 0:02:53]}  g5 {[%clk 0:02:48]} 14. hxg5 {[%clk 0:02:53]}  Qxg5 {[%clk 0:02:47]} 15. Ncd5 {[%clk 0:02:51]}  h4 {[%clk 0:02:38]} 16. Nxc7 {[%clk 0:02:46]}  hxg3 {[%clk 0:02:38]} 17. Nxe8 {[%clk 0:02:43]}  Qh4 {[%clk 0:02:29]} 18. Nh3 {[%clk 0:02:35]}  gxf2+ {[%clk 0:02:26]} 19. Rxf2 {[%clk 0:02:31]}  Nxf2 {[%clk 0:02:26]} 20. Nxf2 {[%clk 0:02:31]}  Bh6 {[%clk 0:02:26]} 21. Nxd6 {[%clk 0:02:07]}  Qg3 {[%clk 0:02:22]} 22. Nxc8 {[%clk 0:01:47]}  Rxc8 {[%clk 0:02:17]} 23. Qxf5 {[%clk 0:01:45]}  Rxc4 {[%clk 0:02:18]} 24. Qg4+ {[%clk 0:01:38]}  Qxg4 {[%clk 0:02:16]} 25. Nxg4 {[%clk 0:01:39]} 1-0


[Site "https://www.chess.com"]

[Event "Titled Tuesday Blitz March 28 Early 2023"]
[White "Ozen, Bahadir"]
[Black "Jain Kashish Manoj"]
[WhiteFideId "6337058"]
[BlackFideId "35081098"]
[WhiteElo "2503"]
[BlackElo "2191"]
[Result "1/2-1/2"]
[Round "04"]
[TimeControl "180+2"]
[Date "2023.03.28"]
[WhiteClock "0:00:32"]
[BlackClock "0:00:04"]

1. h3 {[%clk 0:03:00]}  e5 {[%clk 0:02:53]} 2. c3 {[%clk 0:03:01]}  d5 {[%clk 0:02:50]} 3. d4 {[%clk 0:03:01]}  e4 {[%clk 0:02:51]} 4. Bf4 {[%clk 0:03:00]}  Nf6 {[%clk 0:02:51]} 5. e3 {[%clk 0:03:00]}  Be7 {[%clk 0:02:52]} 6. c4 {[%clk 0:03:00]}  O-O {[%clk 0:02:40]} 7. Nc3 {[%clk 0:02:58]}  c6 {[%clk 0:02:33]} 8. Rc1 {[%clk 0:02:52]}  Nbd7 {[%clk 0:02:23]} 9. cxd5 {[%clk 0:02:48]}  Nxd5 {[%clk 0:02:17]} 10. Nxd5 {[%clk 0:02:47]}  cxd5 {[%clk 0:02:18]} 11. Ne2 {[%clk 0:02:48]}  Nb6 {[%clk 0:01:57]} 12. Nc3 {[%clk 0:02:41]}  Bd7 {[%clk 0:01:51]} 13. Qb3 {[%clk 0:02:39]}  Bc6 {[%clk 0:01:49]} 14. Be2 {[%clk 0:02:35]}  Rc8 {[%clk 0:01:45]} 15. O-O {[%clk 0:02:35]}  Bd6 {[%clk 0:01:39]} 16. Bxd6 {[%clk 0:02:31]}  Qxd6 {[%clk 0:01:40]} 17. Nb5 {[%clk 0:02:20]}  Qb8 {[%clk 0:01:33]} 18. Rc5 {[%clk 0:02:14]}  Nd7 {[%clk 0:01:23]} 19. Rc2 {[%clk 0:02:03]}  Bxb5 {[%clk 0:01:22]} 20. Bxb5 {[%clk 0:02:02]}  Rxc2 {[%clk 0:01:21]} 21. Qxc2 {[%clk 0:02:03]}  Rc8 {[%clk 0:01:21]} 22. Qd2 {[%clk 0:01:52]}  Nb6 {[%clk 0:01:19]} 23. Rc1 {[%clk 0:01:45]}  Rxc1+ {[%clk 0:00:30]} 24. Qxc1 {[%clk 0:01:46]}  Qc8 {[%clk 0:00:31]} 25. Qd1 {[%clk 0:01:35]}  a6 {[%clk 0:00:25]} 26. Be2 {[%clk 0:01:36]}  Qc6 {[%clk 0:00:21]} 27. Qd2 {[%clk 0:01:32]}  g6 {[%clk 0:00:06]} 28. g3 {[%clk 0:01:20]}  h5 {[%clk 0:00:05]} 29. Kg2 {[%clk 0:01:20]}  Kg7 {[%clk 0:00:06]} 30. h4 {[%clk 0:01:19]}  Nd7 {[%clk 0:00:04]} 31. Bd1 {[%clk 0:01:15]}  Nf6 {[%clk 0:00:04]} 32. Bb3 {[%clk 0:01:11]}  Ng4 {[%clk 0:00:04]} 33. Bd1 {[%clk 0:01:04]}  Qd7 {[%clk 0:00:04]} 34. a3 {[%clk 0:00:52]}  Qf5 {[%clk 0:00:05]} 35. b3 {[%clk 0:00:53]}  b6 {[%clk 0:00:05]} 36. Qc2 {[%clk 0:00:46]}  a5 {[%clk 0:00:04]} 37. Qd2 {[%clk 0:00:47]}  Kh7 {[%clk 0:00:02]} 38. Qe1 {[%clk 0:00:41]}  Kg7 {[%clk 0:00:02]} 39. Qe2 {[%clk 0:00:37]}  Kh7 {[%clk 0:00:02]} 40. Qd2 {[%clk 0:00:35]}  Kg7 {[%clk 0:00:03]} 41. Qc2 {[%clk 0:00:35]}  Kh7 {[%clk 0:00:03]} 42. Qd2 {[%clk 0:00:31]}  Kg7 {[%clk 0:00:03]} 43. Qc2 {[%clk 0:00:31]}  Kh7 {[%clk 0:00:04]} 44. Qd2 {[%clk 0:00:32]} 1/2-1/2


[Site "https://www.chess.com"]

[Event "Titled Tuesday Blitz March 28 Early 2023"]
[White "Degenbaev, Aziz"]
[Black "Kilic, Eray"]
[WhiteFideId "13802640"]
[BlackFideId "44517173"]
[WhiteElo "2152"]
[BlackElo "2328"]
[Result "0-1"]
[Round "04"]
[TimeControl "180+2"]
[Date "2023.03.28"]
[WhiteClock "0:00:05"]
[BlackClock "0:00:21"]

1. e4 {[%clk 0:03:00]}  c5 {[%clk 0:03:00]} 2. Nf3 {[%clk 0:03:01]}  d6 {[%clk 0:03:00]} 3. d4 {[%clk 0:03:00]}  cxd4 {[%clk 0:03:01]} 4. Nxd4 {[%clk 0:03:01]}  Nf6 {[%clk 0:03:01]} 5. Nc3 {[%clk 0:03:02]}  a6 {[%clk 0:03:02]} 6. Be3 {[%clk 0:03:02]}  e5 {[%clk 0:03:02]} 7. Nb3 {[%clk 0:03:02]}  Be6 {[%clk 0:03:02]} 8. f3 {[%clk 0:03:01]}  Nbd7 {[%clk 0:03:01]} 9. Qd2 {[%clk 0:02:58]}  h5 {[%clk 0:03:01]} 10. Nd5 {[%clk 0:02:56]}  Bxd5 {[%clk 0:02:59]} 11. exd5 {[%clk 0:02:56]}  g6 {[%clk 0:03:00]} 12. c4 {[%clk 0:02:54]}  b6 {[%clk 0:02:59]} 13. Be2 {[%clk 0:02:53]}  Bg7 {[%clk 0:02:59]} 14. O-O {[%clk 0:02:54]}  O-O {[%clk 0:02:59]} 15. Qe1 {[%clk 0:02:36]}  a5 {[%clk 0:02:49]} 16. Nd2 {[%clk 0:02:32]}  Nc5 {[%clk 0:02:46]} 17. Rb1 {[%clk 0:02:00]}  Re8 {[%clk 0:02:31]} 18. Bg5 {[%clk 0:02:00]}  Qc8 {[%clk 0:02:27]} 19. Qh4 {[%clk 0:01:59]}  Nh7 {[%clk 0:02:17]} 20. Ne4 {[%clk 0:01:58]}  Nxg5 {[%clk 0:02:05]} 21. Qxg5 {[%clk 0:01:48]}  Nxe4 {[%clk 0:01:59]} 22. fxe4 {[%clk 0:01:49]}  Qc5+ {[%clk 0:01:59]} 23. Kh1 {[%clk 0:01:48]}  Qd4 {[%clk 0:01:54]} 24. Qh4 {[%clk 0:01:23]}  a4 {[%clk 0:01:35]} 25. Qf2 {[%clk 0:00:51]}  Qxf2 {[%clk 0:01:33]} 26. Rxf2 {[%clk 0:00:52]}  Rec8 {[%clk 0:01:30]} 27. Bd3 {[%clk 0:00:50]}  Bh6 {[%clk 0:01:28]} 28. Rf3 {[%clk 0:00:45]}  Bg5 {[%clk 0:01:25]} 29. g3 {[%clk 0:00:39]}  Ra7 {[%clk 0:01:24]} 30. Kg2 {[%clk 0:00:39]}  Kg7 {[%clk 0:01:16]} 31. Kf1 {[%clk 0:00:38]}  Rc5 {[%clk 0:01:13]} 32. Ke2 {[%clk 0:00:37]}  h4 {[%clk 0:01:01]} 33. g4 {[%clk 0:00:33]}  Bf4 {[%clk 0:00:59]} 34. h3 {[%clk 0:00:34]}  Kf6 {[%clk 0:00:58]} 35. Rff1 {[%clk 0:00:26]}  Kg5 {[%clk 0:00:58]} 36. Rfd1 {[%clk 0:00:26]}  f6 {[%clk 0:00:55]} 37. Rf1 {[%clk 0:00:26]}  Rac7 {[%clk 0:00:41]} 38. Rfd1 {[%clk 0:00:25]}  Rxc4 {[%clk 0:00:27]} 39. Bxc4 {[%clk 0:00:26]}  Rxc4 {[%clk 0:00:28]} 40. Kf3 {[%clk 0:00:25]}  Rc2 {[%clk 0:00:28]} 41. b3 {[%clk 0:00:20]}  a3 {[%clk 0:00:28]} 42. Rd3 {[%clk 0:00:16]}  Rxa2 {[%clk 0:00:27]} 43. Rc3 {[%clk 0:00:09]}  Rh2 {[%clk 0:00:26]} 44. Rc6 {[%clk 0:00:08]}  Rxh3+ {[%clk 0:00:26]} 45. Ke2 {[%clk 0:00:08]}  Rh2+ {[%clk 0:00:26]} 46. Kd3 {[%clk 0:00:08]}  Rd2+ {[%clk 0:00:25]} 47. Kc3 {[%clk 0:00:08]}  h3 {[%clk 0:00:22]} 48. Rxb6 {[%clk 0:00:06]}  a2 {[%clk 0:00:21]} 49. Ra1 {[%clk 0:00:05]}  h2 {[%clk 0:00:21]} 50. Rb8 {[%clk 0:00:03]}  Be3 {[%clk 0:00:20]} 51. Rh8 {[%clk 0:00:02]}  Rg2 {[%clk 0:00:20]} 52. Kd3 {[%clk 0:00:01]}  Bd4 {[%clk 0:00:21]} 53. Rxa2 {[%clk 0:00:01]}  Rxa2 {[%clk 0:00:20]} 54. b4 {[%clk 0:00:02]}  Bg1 {[%clk 0:00:19]} 55. b5 {[%clk 0:00:02]}  Rb2 {[%clk 0:00:20]} 56. Kc4 {[%clk 0:00:02]}  Kxg4 {[%clk 0:00:20]} 57. b6 {[%clk 0:00:03]}  Rxb6 {[%clk 0:00:19]} 58. Rh6 {[%clk 0:00:03]}  g5 {[%clk 0:00:20]} 59. Kd3 {[%clk 0:00:04]}  Rb2 {[%clk 0:00:19]} 60. Kc3 {[%clk 0:00:04]}  Rf2 {[%clk 0:00:19]} 61. Kd3 {[%clk 0:00:04]}  Kg3 {[%clk 0:00:20]} 62. Ke3 {[%clk 0:00:05]}  Rf4+ {[%clk 0:00:20]} 63. Kd3 {[%clk 0:00:05]}  Rh4 {[%clk 0:00:21]} 64. Rxf6 {[%clk 0:00:05]}  h1=Q {[%clk 0:00:21]} 65. Rxd6 {[%clk 0:00:05]}  Qxe4+ {[%clk 0:00:21]} 0-1


[Site "https://www.chess.com"]

[Event "Titled Tuesday Blitz March 28 Early 2023"]
[White "Ozates, Tuna"]
[Black "Boyer, Mahel"]
[WhiteFideId "6354521"]
[BlackFideId "45102422"]
[WhiteElo "2151"]
[BlackElo "2439"]
[Result "0-1"]
[Round "04"]
[TimeControl "180+2"]
[Date "2023.03.28"]
[WhiteClock "0:01:43"]
[BlackClock "0:02:45"]

1. e4 {[%clk 0:03:00]}  Nc6 {[%clk 0:02:59]} 2. Nf3 {[%clk 0:02:58]}  d5 {[%clk 0:03:00]} 3. exd5 {[%clk 0:02:59]}  Qxd5 {[%clk 0:03:00]} 4. Nc3 {[%clk 0:02:59]}  Qh5 {[%clk 0:03:00]} 5. Nb5 {[%clk 0:02:56]}  Kd8 {[%clk 0:02:58]} 6. d4 {[%clk 0:02:56]}  Bg4 {[%clk 0:02:54]} 7. Bf4 {[%clk 0:02:54]}  a6 {[%clk 0:02:47]} 8. Nxc7 {[%clk 0:02:49]}  Rc8 {[%clk 0:02:46]} 9. d5 {[%clk 0:02:50]}  Bxf3 {[%clk 0:02:46]} 10. gxf3 {[%clk 0:02:32]}  Ne5 {[%clk 0:02:44]} 11. Ne6+ {[%clk 0:01:51]}  fxe6 {[%clk 0:02:45]} 12. dxe6+ {[%clk 0:01:52]}  Ke8 {[%clk 0:02:46]} 13. Be2 {[%clk 0:01:53]}  Nf6 {[%clk 0:02:45]} 14. Qd6 {[%clk 0:01:43]} 0-1


[Site "https://www.chess.com"]

[Event "Titled Tuesday Blitz March 28 Early 2023"]
[White "Zemlyanskii, Ivan"]
[Black "Bilan, Danila"]
[WhiteFideId "24249971"]
[BlackFideId "24161918"]
[WhiteElo "2233"]
[BlackElo "2182"]
[Result "1-0"]
[Round "04"]
[TimeControl "180+2"]
[Date "2023.03.28"]
[WhiteClock "0:00:12"]
[BlackClock "0:00:02"]

1. d4 {[%clk 0:03:00]}  d5 {[%clk 0:02:41]} 2. Bf4 {[%clk 0:03:01]}  Nf6 {[%clk 0:02:41]} 3. e3 {[%clk 0:03:01]}  c5 {[%clk 0:02:42]} 4. c3 {[%clk 0:02:57]}  Nc6 {[%clk 0:02:40]} 5. Nd2 {[%clk 0:02:56]}  cxd4 {[%clk 0:02:40]} 6. exd4 {[%clk 0:02:53]}  Bf5 {[%clk 0:02:39]} 7. Ngf3 {[%clk 0:02:49]}  e6 {[%clk 0:02:39]} 8. Qb3 {[%clk 0:02:47]}  Qc8 {[%clk 0:02:35]} 9. h3 {[%clk 0:02:46]}  h6 {[%clk 0:02:20]} 10. Be2 {[%clk 0:02:43]}  Be7 {[%clk 0:02:19]} 11. Nf1 {[%clk 0:02:31]}  O-O {[%clk 0:02:07]} 12. Ne3 {[%clk 0:02:31]}  Bh7 {[%clk 0:01:58]} 13. O-O {[%clk 0:02:30]}  a6 {[%clk 0:01:56]} 14. a4 {[%clk 0:02:29]}  Na5 {[%clk 0:01:41]} 15. Qd1 {[%clk 0:02:27]}  Nc4 {[%clk 0:01:37]} 16. Nxc4 {[%clk 0:02:18]}  dxc4 {[%clk 0:01:38]} 17. Ne5 {[%clk 0:02:19]}  b5 {[%clk 0:01:33]} 18. Bf3 {[%clk 0:02:07]}  Nd5 {[%clk 0:01:14]} 19. Bxd5 {[%clk 0:02:02]}  exd5 {[%clk 0:01:14]} 20. Re1 {[%clk 0:01:59]}  Re8 {[%clk 0:01:00]} 21. axb5 {[%clk 0:01:36]}  axb5 {[%clk 0:00:59]} 22. Rxa8 {[%clk 0:01:36]}  Qxa8 {[%clk 0:00:59]} 23. Qh5 {[%clk 0:01:37]}  Rf8 {[%clk 0:00:36]} 24. Nd7 {[%clk 0:01:33]}  Re8 {[%clk 0:00:32]} 25. Nb6 {[%clk 0:01:31]}  Qc6 {[%clk 0:00:17]} 26. Nxd5 {[%clk 0:01:28]}  Bf8 {[%clk 0:00:18]} 27. Rxe8 {[%clk 0:01:06]}  Qxe8 {[%clk 0:00:19]} 28. Be5 {[%clk 0:00:36]}  Qe6 {[%clk 0:00:06]} 29. Nc7 {[%clk 0:00:31]}  Qc6 {[%clk 0:00:05]} 30. Bg3 {[%clk 0:00:22]}  Be4 {[%clk 0:00:04]} 31. Qxb5 {[%clk 0:00:22]}  Bxg2 {[%clk 0:00:04]} 32. Qxc6 {[%clk 0:00:21]}  Bxc6 {[%clk 0:00:05]} 33. d5 {[%clk 0:00:18]}  Bd7 {[%clk 0:00:05]} 34. Na6 {[%clk 0:00:16]}  Bxh3 {[%clk 0:00:04]} 35. d6 {[%clk 0:00:11]}  Be6 {[%clk 0:00:03]} 36. Nc5 {[%clk 0:00:11]}  g5 {[%clk 0:00:01]} 37. d7 {[%clk 0:00:11]}  Be7 {[%clk 0:00:01]} 38. Nxe6 {[%clk 0:00:12]}  fxe6 {[%clk 0:00:02]} 39. Bc7 {[%clk 0:00:12]} 1-0


[Site "https://www.chess.com"]

[Event "Titled Tuesday Blitz March 28 Early 2023"]
[White "Jimenez Almeida, Luis David"]
[Black "Nagy, Gabor"]
[WhiteFideId "22242244"]
[BlackFideId "737119"]
[WhiteElo "2245"]
[BlackElo "2510"]
[Result "0-1"]
[Round "04"]
[TimeControl "180+2"]
[Date "2023.03.28"]
[WhiteClock "0:00:14"]
[BlackClock "0:01:01"]

1. e4 {[%clk 0:02:50]}  c6 {[%clk 0:02:59]} 2. Nc3 {[%clk 0:02:48]}  d5 {[%clk 0:02:59]} 3. Qf3 {[%clk 0:02:46]}  d4 {[%clk 0:02:56]} 4. Bc4 {[%clk 0:02:45]}  e6 {[%clk 0:02:54]} 5. Nce2 {[%clk 0:02:44]}  Nd7 {[%clk 0:02:47]} 6. Qg3 {[%clk 0:02:42]}  Ngf6 {[%clk 0:02:43]} 7. d3 {[%clk 0:02:41]}  e5 {[%clk 0:02:37]} 8. Nh3 {[%clk 0:02:34]}  b5 {[%clk 0:02:15]} 9. Bb3 {[%clk 0:02:33]}  h6 {[%clk 0:02:02]} 10. f4 {[%clk 0:02:27]}  Qc7 {[%clk 0:01:54]} 11. fxe5 {[%clk 0:02:22]}  Qxe5 {[%clk 0:01:47]} 12. Bf4 {[%clk 0:02:17]}  Qe7 {[%clk 0:01:47]} 13. Nxd4 {[%clk 0:02:09]}  Nh5 {[%clk 0:01:43]} 14. Qf2 {[%clk 0:02:00]}  Nxf4 {[%clk 0:01:42]} 15. Nxf4 {[%clk 0:01:57]}  Ne5 {[%clk 0:01:43]} 16. O-O {[%clk 0:01:45]}  g6 {[%clk 0:01:33]} 17. h3 {[%clk 0:01:17]}  Bg7 {[%clk 0:01:32]} 18. Rad1 {[%clk 0:01:03]}  a5 {[%clk 0:01:31]} 19. c3 {[%clk 0:01:01]}  a4 {[%clk 0:01:31]} 20. Bc2 {[%clk 0:01:01]}  O-O {[%clk 0:01:31]} 21. a3 {[%clk 0:00:57]}  Ba6 {[%clk 0:01:25]} 22. Nf3 {[%clk 0:00:55]}  Nxf3+ {[%clk 0:01:25]} 23. Qxf3 {[%clk 0:00:54]}  Rad8 {[%clk 0:01:26]} 24. Rfe1 {[%clk 0:00:51]}  Bb7 {[%clk 0:01:22]} 25. d4 {[%clk 0:00:51]}  c5 {[%clk 0:01:22]} 26. d5 {[%clk 0:00:46]}  b4 {[%clk 0:01:20]} 27. axb4 {[%clk 0:00:44]}  cxb4 {[%clk 0:01:21]} 28. Bxa4 {[%clk 0:00:37]}  bxc3 {[%clk 0:01:20]} 29. bxc3 {[%clk 0:00:38]}  Qa3 {[%clk 0:01:21]} 30. Bc6 {[%clk 0:00:34]}  Bc8 {[%clk 0:01:17]} 31. c4 {[%clk 0:00:31]}  Qc5+ {[%clk 0:01:16]} 32. Kh1 {[%clk 0:00:31]}  Qxc4 {[%clk 0:01:16]} 33. Qd3 {[%clk 0:00:29]}  Qb4 {[%clk 0:01:15]} 34. Rb1 {[%clk 0:00:28]}  Qd6 {[%clk 0:01:13]} 35. Ne2 {[%clk 0:00:26]}  f5 {[%clk 0:01:12]} 36. Nc3 {[%clk 0:00:22]}  Kh7 {[%clk 0:01:10]} 37. Nb5 {[%clk 0:00:21]}  Qf4 {[%clk 0:01:04]} 38. Qf3 {[%clk 0:00:15]}  Qxf3 {[%clk 0:01:01]} 39. gxf3 {[%clk 0:00:16]}  fxe4 {[%clk 0:01:02]} 40. fxe4 {[%clk 0:00:17]}  Rf3 {[%clk 0:01:01]} 41. Kg2 {[%clk 0:00:16]}  Rdf8 {[%clk 0:01:00]} 42. Re2 {[%clk 0:00:15]}  Bxh3+ {[%clk 0:01:00]} 43. Kh2 {[%clk 0:00:15]}  Be5+ {[%clk 0:01:00]} 44. Kh1 {[%clk 0:00:16]}  Rf1+ {[%clk 0:01:00]} 45. Rxf1 {[%clk 0:00:14]}  Rxf1# {[%clk 0:01:01]} 0-1


[Site "https://www.chess.com"]

[Event "Titled Tuesday Blitz March 28 Early 2023"]
[White "Dobre, Claudiu-Cristian"]
[Black "Samunenkov, Ihor"]
[WhiteFideId "1211854"]
[BlackFideId "14187086"]
[WhiteElo "2207"]
[BlackElo "2457"]
[Result "0-1"]
[Round "04"]
[TimeControl "180+2"]
[Date "2023.03.28"]
[WhiteClock "0:00:04"]
[BlackClock "0:00:40"]

1. e4 {[%clk 0:03:00]}  c5 {[%clk 0:02:58]} 2. b3 {[%clk 0:03:01]}  Nc6 {[%clk 0:02:46]} 3. Bb2 {[%clk 0:02:58]}  e5 {[%clk 0:02:44]} 4. Bc4 {[%clk 0:02:58]}  g6 {[%clk 0:02:40]} 5. f4 {[%clk 0:02:51]}  d6 {[%clk 0:02:38]} 6. Nf3 {[%clk 0:02:50]}  Bg7 {[%clk 0:02:39]} 7. O-O {[%clk 0:02:46]}  Nh6 {[%clk 0:02:37]} 8. d3 {[%clk 0:01:35]}  O-O {[%clk 0:02:35]} 9. Qd2 {[%clk 0:01:35]}  Nd4 {[%clk 0:02:24]} 10. Nc3 {[%clk 0:00:39]}  Rb8 {[%clk 0:01:29]} 11. a4 {[%clk 0:00:38]}  Bg4 {[%clk 0:01:07]} 12. Nxd4 {[%clk 0:00:23]}  cxd4 {[%clk 0:01:04]} 13. Nd5 {[%clk 0:00:23]}  Be6 {[%clk 0:00:56]} 14. Ba3 {[%clk 0:00:13]}  Re8 {[%clk 0:00:54]} 15. h3 {[%clk 0:00:11]}  f5 {[%clk 0:00:47]} 16. fxe5 {[%clk 0:00:10]}  dxe5 {[%clk 0:00:47]} 17. exf5 {[%clk 0:00:08]}  Nxf5 {[%clk 0:00:39]} 18. Rae1 {[%clk 0:00:07]}  Bxd5 {[%clk 0:00:39]} 19. Bxd5+ {[%clk 0:00:04]}  Qxd5 {[%clk 0:00:40]} 0-1


[Site "https://www.chess.com"]